[Event "FIDE Womens World Cup 2021"]
[Site "Sochi"]
[Date "2021.07.17"]
[Round "2.3"]
[White "Socko, Monika"]
[Black "Cramling, Pia"]
[Result "1/2-1/2"]
[ECO "E10"]
[WhiteElo "2393"]
[BlackElo "2459"]
[Annotator "ChessBase"]
[PlyCount "131"]
[EventDate "2021.07.12"]
[EventType "k.o."]
[EventCountry "RUS"]
[SourceTitle "playchess.com"]
[Source "ChessBase"]
[SourceQuality "1"]
[TimeControl "1500+10"]

1. d4 {[%emt 0:00:03]} Nf6 {[%emt 0:00:03]} 2. c4 {[%emt 0:00:02]} e6 {[%emt 0:00:02]} 3. Nf3 {[%emt 0:00:03]} d5 {[%emt 0:00:02]} 4. g3 {[%emt 0:00:01]} Bb4+ {[%emt 0:00:03]} 5. Bd2 {[%emt 0:01:39]} a5 {[%emt 0:00:13]} 6. Bg2 {[%emt 0:00:46]} O-O {[%emt 0:00:17]} 7. a3 {[%emt 0:01:51]} Be7 {[%emt 0:00:39]} 8. cxd5 {[%emt 0:02:56]} exd5 {[%emt 0:00:07]} 9. O-O {[%emt 0:00:03]} c6 {[%emt 0:00:17]} 10. Nc3 {[%emt 0:00:02]} Ne4 {[%emt 0:00:53]} 11. Rc1 {[%emt 0:00:27]} Na6 {[%emt 0:01:52]} 12. Bf4 {[%emt 0:01:11]} Nxc3 {[%emt 0:01:01]} 13. Rxc3 {[%emt 0:00:07]} Nc7 {[%emt 0:00:05]} 14. Bxc7 {[%emt 0:01:03]} Qxc7 {[%emt 0:00:02]} 15. Ne5 {[%emt 0:00:05]} Qb6 {[%emt 0:02:59]} 16. Rb3 {[%emt 0:01:55]} Qa7 {[%emt 0:00:26]} 17. e3 {[%emt 0:00:04]} Bf5 {[%emt 0:00:35]} 18. Qh5 {[%emt 0:00:20]} Be6 {[%emt 0:01:35]} 19. Rc3 {[%emt 0:02:20]} Qb6 {[%emt 0:00:27]} 20. Qe2 {[%emt 0:00:03]} Rad8 {[%emt 0:02:19]} 21. Rfc1 {[%emt 0:00:35]} Rfe8 {[%emt 0:00:23]} 22. Qc2 {[%emt 0:01:08]} Bd6 {[%emt 0:00:54]} 23. Nf3 {[%emt 0:00:16]} g6 {[%emt 0:01:12]} 24. Bf1 {[%emt 0:01:31]} Bf5 {[%emt 0:00:40]} 25. Bd3 {[%emt 0:00:04]} Bxd3 {[%emt 0:00:11]} 26. Rxd3 {[%emt 0:00:01]} Qb5 {[%emt 0:02:03]} 27. Kg2 {[%emt 0:00:36]} a4 {[%emt 0:00:16]} 28. h4 {[%emt 0:00:09]} h5 {[%emt 0:00:08]} 29. Ng5 {[%emt 0:00:34]} Be7 {[%emt 0:01:15]} 30. Nh3 {[%emt 0:00:25]} Qa6 {[%emt 0:00:33]} 31. Qd1 {[%emt 0:00:18]} Qa8 {[%emt 0:00:12]} 32. Rdc3 {[%emt 0:00:55]} Bd6 {[%emt 0:00:14]} 33. Qf3 {[%emt 0:00:38]} Qc8 {[%emt 0:00:27]} 34. Ng5 {[%emt 0:00:08]} Qd7 {[%emt 0:00:11]} 35. Re1 {[%emt 0:01:00]} Kg7 {[%emt 0:00:37]} 36. Rcc1 {[%emt 0:00:12]} f6 {[%emt 0:01:44]} 37. Nh3 {[%emt 0:00:01]} Qg4 {[%emt 0:00:12]} 38. Qxg4 {[%emt 0:00:50]} hxg4 {[%emt 0:00:02]} 39. Ng1 {[%emt 0:00:01]} f5 {[%emt 0:00:38]} 40. Ne2 {[%emt 0:00:04]} Ra8 {[%emt 0:00:14]} 41. Nc3 {[%emt 0:00:48]} Kf6 {[%emt 0:00:22]} 42. Rh1 {[%emt 0:00:03]} Rh8 {[%emt 0:00:07]} 43. Rhf1 {[%emt 0:00:31]} Ra6 {[%emt 0:00:49]} 44. Rc2 {[%emt 0:00:07]} Re8 {[%emt 0:00:45]} 45. Rd1 {[%emt 0:00:25]} Ra7 {[%emt 0:00:20]} 46. Kf1 {[%emt 0:00:16]} Ke6 {[%emt 0:00:07]} 47. Ke2 {[%emt 0:00:10]} Kd7 {[%emt 0:00:02]} 48. Kd3 {[%emt 0:00:01]} Ra6 {[%emt 0:00:20]} 49. Rh1 {[%emt 0:01:03]} Rh8 {[%emt 0:00:01]} 50. Rcc1 {[%emt 0:00:09]} b5 {[%emt 0:00:06]} 51. Ra1 {[%emt 0:01:04]} Raa8 {[%emt 0:00:05]} 52. Rhc1 {[%emt 0:00:06]} Rh7 {[%emt 0:00:11]} 53. Rc2 {[%emt 0:00:03]} Ra6 {[%emt 0:00:09]} 54. Ne2 {[%emt 0:00:14]} Rh8 {[%emt 0:00:12]} 55. Nc1 {[%emt 0:00:27]} Raa8 {[%emt 0:00:48]} 56. Ke2 {[%emt 0:00:02]} g5 {[%emt 0:01:04]} 57. hxg5 {[%emt 0:00:49]} Rh1 {[%emt 0:00:03]} 58. Rd2 {[%emt 0:00:00]} Rah8 {[%emt 0:00:06]} 59. Rd1 {[%emt 0:00:25]} Rxd1 {[%emt 0:00:05]} 60. Kxd1 {[%emt 0:00:01]} Ke6 {[%emt 0:00:52]} 61. Ke2 {[%emt 0:00:45]} Rh1 {[%emt 0:00:02]} 62. Nb3 {[%emt 0:01:10]} Rh2 {[%emt 0:00:12]} 63. Nc5+ {[%emt 0:00:22]} Bxc5 {[%emt 0:00:10]} 64. dxc5 {[%emt 0:00:01]} Kf7 {[%emt 0:00:03]} 65. Rf1 {[%emt 0:00:16]} Kg6 {[%emt 0:00:30]} 66. Rd1 {[%emt 0:00:44]} 1/2-1/2

[Event "FIDE Womens World Cup 2021"]
[Site "Sochi"]
[Date "2021.07.17"]
[Round "2.3"]
[White "Assaubayeva, Bibisara"]
[Black "Abdumalik, Zhansaya"]
[Result "1/2-1/2"]
[ECO "D43"]
[WhiteElo "2389"]
[BlackElo "2505"]
[Annotator "ChessBase"]
[PlyCount "78"]
[EventDate "2021.07.12"]
[EventType "k.o."]
[EventCountry "RUS"]
[SourceTitle "playchess.com"]
[Source "ChessBase"]
[SourceQuality "1"]
[TimeControl "1500+10"]

1. d4 {[%emt 0:00:03]} Nf6 {[%emt 0:00:04]} 2. c4 {[%emt 0:00:01]} e6 {[%emt 0:00:02]} 3. Nf3 {[%emt 0:00:02]} d5 {[%emt 0:00:01]} 4. Nc3 {[%emt 0:00:07]} c6 {[%emt 0:00:02]} 5. Bg5 {[%emt 0:00:30]} h6 {[%emt 0:00:02]} 6. Bxf6 {[%emt 0:00:03]} Qxf6 {[%emt 0:00:02]} 7. e3 {[%emt 0:00:10]} Nd7 {[%emt 0:00:05]} 8. Bd3 {[%emt 0:00:12]} dxc4 {[%emt 0:00:11]} 9. Bxc4 {[%emt 0:00:01]} g6 {[%emt 0:00:06]} 10. O-O {[%emt 0:00:07]} Bg7 {[%emt 0:00:05]} 11. e4 {[%emt 0:00:44]} O-O {[%emt 0:00:09]} 12. e5 {[%emt 0:01:28]} Qe7 {[%emt 0:00:02]} 13. Re1 {[%emt 0:00:24]} b5 {[%emt 0:00:03]} 14. Bd3 {[%emt 0:01:28]} Rd8 {[%emt 0:00:06]} 15. Qc2 {[%emt 0:01:16]} Bb7 {[%emt 0:02:05]} 16. Be4 {[%emt 0:01:57]} Rab8 {[%emt 0:00:51]} 17. Rad1 {[%emt 0:00:52]} Nb6 {[%emt 0:01:51]} 18. Ne2 {[%emt 0:01:22]} Rbc8 {[%emt 0:01:25]} 19. Nf4 {[%emt 0:00:51]} c5 {[%emt 0:02:20]} 20. Bxb7 {[%emt 0:01:34]} Qxb7 {[%emt 0:00:01]} 21. dxc5 {[%emt 0:00:04]} Rxd1 {[%emt 0:00:04]} 22. Rxd1 {[%emt 0:00:06]} Nd7 {[%emt 0:04:16]} 23. b4 {[%emt 0:00:05]} Nxe5 {[%emt 0:00:33]} 24. Nxe5 {[%emt 0:00:07]} Bxe5 {[%emt 0:00:01]} 25. Nxg6 {[%emt 0:01:36]} fxg6 {[%emt 0:02:19]} 26. Qxg6+ {[%emt 0:00:02]} Bg7 {[%emt 0:00:01]} 27. Qxe6+ {[%emt 0:00:01]} Kh8 {[%emt 0:00:34]} 28. Rd7 {[%emt 0:00:04]} Qb8 {[%emt 0:00:42]} 29. g3 {[%emt 0:01:54]} Re8 {[%emt 0:01:16]} 30. Qd5 {[%emt 0:03:10]} Rf8 {[%emt 0:01:43]} 31. Re7 {[%emt 0:02:33]} Bf6 {[%emt 0:01:36]} 32. Rb7 {[%emt 0:02:57]} Qe8 {[%emt 0:00:07]} 33. Rxa7 {[%emt 0:01:26]} Bg7 {[%emt 0:01:38]} 34. Qd2 {[%emt 0:01:02]} Qe4 {[%emt 0:00:32]} 35. Rd7 {[%emt 0:00:09]} Qb1+ {[%emt 0:00:09]} 36. Kg2 {[%emt 0:00:02]} Qe4+ {[%emt 0:00:02]} 37. Kg1 {[%emt 0:00:07]} Qb1+ {[%emt 0:00:04]} 38. Kg2 {[%emt 0:00:20]} Qe4+ {[%emt 0:00:01]} 39. Kg1 {[%emt 0:00:01]} Qb1+ {[%emt 0:00:02]} 1/2-1/2

[Event "FIDE Womens World Cup 2021"]
[Site "Sochi"]
[Date "2021.07.17"]
[Round "2.3"]
[White "Padmini, Rout"]
[Black "Khademalsharieh, Sarasadat"]
[Result "0-1"]
[ECO "C55"]
[WhiteElo "2370"]
[BlackElo "2494"]
[Annotator "ChessBase"]
[PlyCount "150"]
[EventDate "2021.07.12"]
[EventType "k.o."]
[EventCountry "RUS"]
[SourceTitle "playchess.com"]
[Source "ChessBase"]
[SourceQuality "1"]
[TimeControl "1500+10"]

1. e4 {[%emt 0:00:04]} e5 {[%emt 0:00:01]} 2. Nf3 {[%emt 0:00:03]} Nc6 {[%emt 0:00:02]} 3. Bc4 {[%emt 0:00:03]} Nf6 {[%emt 0:00:02]} 4. d4 {[%emt 0:00:03]} exd4 {[%emt 0:00:04]} 5. e5 {[%emt 0:00:06]} d5 {[%emt 0:00:03]} 6. Bb5 {[%emt 0:00:09]} Ne4 {[%emt 0:00:03]} 7. Nxd4 {[%emt 0:00:05]} Bd7 {[%emt 0:00:03]} 8. Bxc6 {[%emt 0:00:24]} bxc6 {[%emt 0:00:04]} 9. O-O {[%emt 0:00:06]} Bc5 {[%emt 0:00:11]} 10. f3 {[%emt 0:00:11]} Ng5 {[%emt 0:00:06]} 11. f4 {[%emt 0:00:04]} Ne4 {[%emt 0:00:22]} 12. Be3 {[%emt 0:00:05]} Qb8 {[%emt 0:00:02]} 13. b3 {[%emt 0:00:14]} Qb6 {[%emt 0:00:11]} 14. Qd3 {[%emt 0:00:20]} a5 {[%emt 0:00:08]} 15. Nd2 {[%emt 0:00:49]} Nxd2 {[%emt 0:02:16]} 16. Qxd2 {[%emt 0:00:04]} Bxd4 {[%emt 0:00:34]} 17. Bxd4 {[%emt 0:00:07]} c5 {[%emt 0:00:02]} 18. Bb2 {[%emt 0:03:04]} d4 {[%emt 0:05:16]} 19. f5 {[%emt 0:03:39]} O-O-O {[%emt 0:00:49]} 20. Rae1 {[%emt 0:00:40]} Rhe8 {[%emt 0:02:13]} 21. Rf2 {[%emt 0:00:47]} Bc6 {[%emt 0:02:47]} 22. Ba3 {[%emt 0:02:37]} Bd5 {[%emt 0:03:01]} 23. c4 {[%emt 0:03:28]} Bb7 {[%emt 0:00:18]} 24. Qg5 {[%emt 0:01:33]} a4 {[%emt 0:01:18]} 25. Rb2 {[%emt 0:03:18]} axb3 {[%emt 0:04:38]} 26. Rxb3 {[%emt 0:00:12]} Qa5 {[%emt 0:00:02]} 27. Qg3 {[%emt 0:05:20]} d3 {[%emt 0:02:02]} 28. Rd1 {[%emt 0:01:20]} d2 {[%emt 0:00:16]} 29. Qe3 {[%emt 0:00:34]} Rd4 {[%emt 0:01:01]} 30. Bb2 {[%emt 0:00:13]} Rxc4 {[%emt 0:01:56]} 31. Qxd2 {[%emt 0:00:13]} Qxd2 {[%emt 0:00:09]} 32. Rxd2 {[%emt 0:00:02]} Be4 {[%emt 0:00:06]} 33. g4 {[%emt 0:00:21]} h5 {[%emt 0:00:14]} 34. Rg3 {[%emt 0:00:16]} h4 {[%emt 0:00:09]} 35. Re3 {[%emt 0:00:07]} Bb1 {[%emt 0:00:09]} 36. h3 {[%emt 0:00:05]} g6 {[%emt 0:00:11]} 37. e6 {[%emt 0:00:13]} fxe6 {[%emt 0:00:04]} 38. fxe6 {[%emt 0:00:07]} Be4 {[%emt 0:00:06]} 39. Bf6 {[%emt 0:00:13]} Rxe6 {[%emt 0:00:04]} 40. Bxh4 {[%emt 0:00:08]} Ra6 {[%emt 0:00:13]} 41. Rd8+ {[%emt 0:00:15]} Kb7 {[%emt 0:00:02]} 42. Rb3+ {[%emt 0:00:02]} Rb6 {[%emt 0:00:30]} 43. Rd2 {[%emt 0:00:18]} Rxb3 {[%emt 0:00:10]} 44. axb3 {[%emt 0:00:01]} Rc3 {[%emt 0:00:01]} 45. Bf2 {[%emt 0:00:14]} Rxh3 {[%emt 0:00:05]} 46. Bxc5 {[%emt 0:00:02]} Rxb3 {[%emt 0:00:05]} 47. Kf2 {[%emt 0:00:22]} Rf3+ {[%emt 0:00:10]} 48. Ke2 {[%emt 0:00:14]} Rg3 {[%emt 0:00:02]} 49. Rb2+ {[%emt 0:00:04]} Kc6 {[%emt 0:00:04]} 50. Bf2 {[%emt 0:00:03]} Rxg4 {[%emt 0:00:02]} 51. Ke3 {[%emt 0:00:03]} Bf5 {[%emt 0:00:03]} 52. Kf3 {[%emt 0:00:04]} Rc4 {[%emt 0:00:02]} 53. Be3 {[%emt 0:00:11]} Rc3 {[%emt 0:00:04]} 54. Kf4 {[%emt 0:00:05]} Rc4+ {[%emt 0:00:06]} 55. Kf3 {[%emt 0:00:03]} Kd5 {[%emt 0:00:22]} 56. Rd2+ {[%emt 0:00:26]} Ke6 {[%emt 0:00:01]} 57. Rd8 {[%emt 0:00:03]} Rc2 {[%emt 0:00:09]} 58. Re8+ {[%emt 0:00:18]} Kd7 {[%emt 0:00:01]} 59. Rh8 {[%emt 0:00:20]} c5 {[%emt 0:00:02]} 60. Kf4 {[%emt 0:00:04]} Kc6 {[%emt 0:00:14]} 61. Rh1 {[%emt 0:00:10]} Rc4+ {[%emt 0:00:09]} 62. Kg5 {[%emt 0:00:11]} Re4 {[%emt 0:00:03]} 63. Bf4 {[%emt 0:00:13]} c4 {[%emt 0:00:01]} 64. Rh7 {[%emt 0:00:05]} Re2 {[%emt 0:00:17]} 65. Rc7+ {[%emt 0:00:06]} Kd5 {[%emt 0:00:01]} 66. Kf6 {[%emt 0:00:24]} Kd4 {[%emt 0:00:06]} 67. Rc6 {[%emt 0:00:15]} c3 {[%emt 0:00:13]} 68. Rd6+ {[%emt 0:00:03]} Ke4 {[%emt 0:00:02]} 69. Bg5 {[%emt 0:00:04]} c2 {[%emt 0:00:02]} 70. Rc6 {[%emt 0:00:03]} Kf3 {[%emt 0:00:08]} 71. Rc4 {[%emt 0:00:29]} Re6+ {[%emt 0:00:38]} 72. Kg7 {[%emt 0:00:03]} Ke2 {[%emt 0:00:11]} 73. Rc5 {[%emt 0:00:13]} Rd6 {[%emt 0:00:11]} 74. Rc4 {[%emt 0:00:10]} Rd2 {[%emt 0:00:23]} 75. Rc5 {[%emt 0:00:20]} Kd1 0-1

[Event "FIDE Womens World Cup 2021"]
[Site "Sochi"]
[Date "2021.07.17"]
[Round "2.4"]
[White "Khademalsharieh, Sarasadat"]
[Black "Padmini, Rout"]
[Result "1-0"]
[ECO "D85"]
[WhiteElo "2494"]
[BlackElo "2370"]
[Annotator "ChessBase"]
[PlyCount "85"]
[EventDate "2021.07.12"]
[EventType "k.o."]
[EventCountry "RUS"]
[SourceTitle "playchess.com"]
[Source "ChessBase"]
[SourceQuality "1"]
[TimeControl "1500+10"]

1. d4 {[%emt 0:00:03]} Nf6 {[%emt 0:00:01]} 2. c4 {[%emt 0:00:03]} g6 {[%emt 0:00:02]} 3. Nc3 {[%emt 0:00:24]} d5 {[%emt 0:00:02]} 4. cxd5 {[%emt 0:00:05]} Nxd5 {[%emt 0:00:02]} 5. e4 {[%emt 0:00:02]} Nxc3 {[%emt 0:00:03]} 6. bxc3 {[%emt 0:00:03]} Bg7 {[%emt 0:00:02]} 7. Nf3 {[%emt 0:00:13]} O-O {[%emt 0:00:08]} 8. Be2 {[%emt 0:00:17]} b6 {[%emt 0:00:19]} 9. Be3 {[%emt 0:01:46]} Bb7 {[%emt 0:00:03]} 10. Qc2 {[%emt 0:00:11]} c5 {[%emt 0:01:51]} 11. d5 {[%emt 0:02:38]} Qd6 {[%emt 0:07:30]} 12. Rd1 {[%emt 0:00:58]} e5 {[%emt 0:00:26]} 13. Nd2 {[%emt 0:03:08]} Nd7 {[%emt 0:00:04]} 14. Nc4 {[%emt 0:01:01]} Qe7 {[%emt 0:00:49]} 15. O-O {[%emt 0:02:39]} f5 {[%emt 0:00:15]} 16. exf5 {[%emt 0:01:46]} gxf5 {[%emt 0:00:11]} 17. f4 {[%emt 0:00:02]} e4 {[%emt 0:00:13]} 18. Bf2 {[%emt 0:02:49]} Qf6 {[%emt 0:02:43]} 19. Be1 {[%emt 0:00:17]} a6 {[%emt 0:04:45]} 20. a4 {[%emt 0:01:17]} b5 {[%emt 0:00:24]} 21. Na5 {[%emt 0:01:35]} Qb6 {[%emt 0:02:30]} 22. c4 {[%emt 0:04:49]} Bd4+ {[%emt 0:00:04]} 23. Kh1 {[%emt 0:00:07]} Nf6 {[%emt 0:00:03]} 24. Nxb7 {[%emt 0:00:37]} Qxb7 {[%emt 0:00:01]} 25. Bc3 {[%emt 0:00:12]} Bxc3 {[%emt 0:01:37]} 26. Qxc3 {[%emt 0:00:01]} b4 {[%emt 0:00:05]} 27. Qe3 {[%emt 0:00:23]} Qb6 {[%emt 0:00:17]} 28. Qh3 {[%emt 0:00:09]} Ne8 {[%emt 0:00:26]} 29. g4 {[%emt 0:00:06]} Nd6 {[%emt 0:01:53]} 30. gxf5 Nxf5 {[%emt 0:00:02]} 31. Bg4 {[%emt 0:00:36]} Nd4 {[%emt 0:00:03]} 32. Be6+ {[%emt 0:00:13]} Kh8 {[%emt 0:00:02]} 33. f5 {[%emt 0:00:08]} Qd6 {[%emt 0:00:41]} 34. Qh6 {[%emt 0:00:15]} Nxf5 {[%emt 0:01:09]} 35. Rxf5 {[%emt 0:00:36]} Rxf5 {[%emt 0:00:06]} 36. Rg1 {[%emt 0:00:02]} Qf8 {[%emt 0:00:55]} 37. Qh3 {[%emt 0:01:24]} Rf3 {[%emt 0:00:26]} 38. Qg2 {[%emt 0:00:15]} h6 {[%emt 0:00:21]} 39. d6 {[%emt 0:00:06]} Rd8 {[%emt 0:00:10]} 40. d7 {[%emt 0:00:03]} Rf6 {[%emt 0:00:53]} 41. Qxe4 {[%emt 0:00:16]} Qe7 {[%emt 0:00:07]} 42. Rg6 {[%emt 0:00:19]} Rxd7 {[%emt 0:00:10]} 43. Rg8# 1-0

[Event "FIDE Womens World Cup 2021"]
[Site "Sochi"]
[Date "2021.07.17"]
[Round "2.4"]
[White "Cramling, Pia"]
[Black "Socko, Monika"]
[Result "1/2-1/2"]
[ECO "E12"]
[WhiteElo "2459"]
[BlackElo "2393"]
[Annotator "ChessBase"]
[PlyCount "113"]
[EventDate "2021.07.12"]
[EventType "k.o."]
[EventCountry "RUS"]
[SourceTitle "playchess.com"]
[Source "ChessBase"]
[SourceQuality "1"]
[TimeControl "1500+10"]

1. d4 {[%emt 0:00:02]} Nf6 {[%emt 0:00:02]} 2. c4 {[%emt 0:00:01]} e6 {[%emt 0:00:02]} 3. Nf3 {[%emt 0:00:02]} b6 {[%emt 0:00:01]} 4. a3 {[%emt 0:00:04]} Ba6 {[%emt 0:00:02]} 5. Qc2 {[%emt 0:00:02]} Bb7 {[%emt 0:00:38]} 6. Nc3 {[%emt 0:00:11]} c5 {[%emt 0:00:15]} 7. e4 {[%emt 0:00:09]} cxd4 {[%emt 0:00:23]} 8. Nxd4 {[%emt 0:00:02]} Bc5 {[%emt 0:00:24]} 9. Nb3 {[%emt 0:00:07]} Nc6 {[%emt 0:01:26]} 10. Bd3 {[%emt 0:00:23]} O-O {[%emt 0:02:06]} 11. Bf4 {[%emt 0:03:56]} e5 {[%emt 0:07:23]} 12. Bd2 {[%emt 0:01:24]} d6 {[%emt 0:02:31]} 13. O-O {[%emt 0:00:46]} h6 {[%emt 0:02:02]} 14. Qd1 {[%emt 0:01:33]} Nd4 {[%emt 0:00:11]} 15. Nxd4 {[%emt 0:01:32]} Bxd4 {[%emt 0:00:09]} 16. Re1 {[%emt 0:01:05]} Qd7 {[%emt 0:00:44]} 17. h3 {[%emt 0:00:13]} Rac8 {[%emt 0:00:20]} 18. Rb1 {[%emt 0:01:01]} Ba6 {[%emt 0:00:33]} 19. Qe2 {[%emt 0:00:49]} Qe6 {[%emt 0:00:49]} 20. b3 {[%emt 0:01:22]} Bxc3 {[%emt 0:01:31]} 21. Bxc3 {[%emt 0:00:03]} Nd7 {[%emt 0:00:02]} 22. Qc2 {[%emt 0:03:31]} Rfd8 {[%emt 0:00:44]} 23. Rbd1 {[%emt 0:00:50]} Nc5 {[%emt 0:00:45]} 24. Be2 {[%emt 0:00:22]} Qg6 {[%emt 0:00:51]} 25. Bg4 {[%emt 0:00:24]} Rb8 {[%emt 0:00:02]} 26. Bf5 {[%emt 0:03:47]} Qg5 {[%emt 0:00:52]} 27. Re3 {[%emt 0:01:41]} Bc8 {[%emt 0:00:44]} 28. Rg3 {[%emt 0:00:31]} Qf6 {[%emt 0:00:18]} 29. f4 {[%emt 0:01:08]} Bxf5 {[%emt 0:02:10]} 30. exf5 {[%emt 0:00:01]} Qe7 {[%emt 0:00:05]} 31. b4 {[%emt 0:01:24]} Nd7 {[%emt 0:00:09]} 32. Rgd3 {[%emt 0:00:22]} exf4 {[%emt 0:00:43]} 33. Rxd6 {[%emt 0:00:06]} Nf8 {[%emt 0:00:01]} 34. Rxd8 {[%emt 0:00:42]} Rxd8 {[%emt 0:00:01]} 35. Rxd8 {[%emt 0:00:10]} Qxd8 {[%emt 0:00:01]} 36. Qe4 {[%emt 0:00:18]} Qd1+ {[%emt 0:00:34]} 37. Kh2 {[%emt 0:00:04]} Qc1 {[%emt 0:00:46]} 38. Be5 {[%emt 0:00:34]} Qxa3 {[%emt 0:00:08]} 39. Bd6 {[%emt 0:00:26]} Qg3+ {[%emt 0:00:45]} 40. Kh1 {[%emt 0:00:04]} Qe3 {[%emt 0:00:09]} 41. Qxf4 {[%emt 0:00:19]} Qxf4 {[%emt 0:00:21]} 42. Bxf4 {[%emt 0:00:01]} Nd7 {[%emt 0:00:00]} 43. g4 {[%emt 0:00:10]} Kf8 {[%emt 0:00:08]} 44. Kg2 {[%emt 0:00:05]} Ke7 {[%emt 0:00:01]} 45. Kf3 {[%emt 0:00:03]} a5 {[%emt 0:00:05]} 46. bxa5 {[%emt 0:00:23]} bxa5 47. Ke4 {[%emt 0:00:04]} a4 {[%emt 0:00:09]} 48. Bc1 {[%emt 0:00:03]} Kd6 {[%emt 0:00:11]} 49. Kd4 {[%emt 0:00:08]} Kc6 {[%emt 0:00:06]} 50. Ba3 {[%emt 0:00:05]} g6 {[%emt 0:00:10]} 51. Bc1 {[%emt 0:00:17]} h5 {[%emt 0:00:10]} 52. gxh5 {[%emt 0:00:11]} gxh5 {[%emt 0:00:01]} 53. Ba3 {[%emt 0:00:03]} Nf6 {[%emt 0:00:31]} 54. Ke5 {[%emt 0:00:16]} Nd7+ {[%emt 0:00:01]} 55. Kd4 {[%emt 0:00:01]} Nf6 {[%emt 0:00:02]} 56. Ke5 {[%emt 0:00:21]} Nd7+ {[%emt 0:00:01]} 57. Ke4 1/2-1/2

[Event "FIDE Womens World Cup 2021"]
[Site "Sochi"]
[Date "2021.07.17"]
[Round "2.4"]
[White "Matnadze, Ana"]
[Black "Badelka, Olga"]
[Result "0-1"]
[ECO "A46"]
[WhiteElo "2421"]
[BlackElo "2418"]
[Annotator "NA"]
[PlyCount "72"]
[EventDate "2021.07.12"]
[EventType "k.o."]
[EventCountry "RUS"]
[SourceTitle "playchess.com"]
[Source "ChessBase"]
[SourceQuality "1"]
[TimeControl "1500+10"]

1. d4 {[%emt 0:00:04]} Nf6 {[%emt 0:00:01]} 2. Nf3 {[%emt 0:00:03]} c5 {[%emt 0:00:01]} 3. c3 {[%emt 0:00:11]} b6 {[%emt 0:00:16]} 4. g3 {[%emt 0:00:09]} Bb7 {[%emt 0:00:02]} 5. Bg2 {[%emt 0:00:01]} g6 {[%emt 0:00:56]} 6. O-O {[%emt 0:00:05]} Bg7 {[%emt 0:00:01]} 7. Ne5 {[%emt 0:00:39]} Bxg2 {[%emt 0:00:22]} 8. Kxg2 {[%emt 0:00:01]} O-O {[%emt 0:00:29]} 9. a4 {[%emt 0:00:33]} d6 {[%emt 0:00:59]} 10. Nf3 {[%emt 0:00:08]} Nc6 {[%emt 0:00:35]} 11. Na3 {[%emt 0:00:46]} d5 {[%emt 0:01:21]} 12. Bf4 {[%emt 0:05:59]} Rc8 {[%emt 0:00:04]} 13. Ne5 {[%emt 0:00:21]} Nh5 {[%emt 0:01:56]} 14. Qd2 {[%emt 0:00:33]} Nxe5 {[%emt 0:02:23]} 15. dxe5 {[%emt 0:00:24]} Qd7 {[%emt 0:00:35]} 16. Bh6 {[%emt 0:02:17]} Bxh6 {[%emt 0:01:46]} 17. Qxh6 {[%emt 0:00:01]} Qxa4 {[%emt 0:00:07]} 18. f3 {[%emt 0:00:24]} Ng7 {[%emt 0:03:32]} 19. g4 {[%emt 0:00:57]} f6 {[%emt 0:00:21]} 20. Rfd1 {[%emt 0:01:12]} Rcd8 {[%emt 0:00:30]} 21. exf6 {[%emt 0:03:20]} Rxf6 {[%emt 0:00:28]} 22. Qg5 {[%emt 0:00:09]} Ne6 {[%emt 0:01:00]} 23. Qe5 {[%emt 0:00:31]} Nf4+ {[%emt 0:01:47]} 24. Kh1 {[%emt 0:02:15]} Rdf8 {[%emt 0:01:32]} 25. Qxe7 {[%emt 0:01:08]} Re6 {[%emt 0:00:07]} 26. Qc7 {[%emt 0:02:17]} Rxe2 {[%emt 0:00:23]} 27. Re1 {[%emt 0:01:11]} Qe8 {[%emt 0:00:58]} 28. Nc2 {[%emt 0:00:17]} Nd3 {[%emt 0:01:46]} 29. Qd6 {[%emt 0:02:50]} Nxe1 {[%emt 0:00:21]} 30. Rxa7 {[%emt 0:00:16]} Nxc2 {[%emt 0:00:54]} 31. Qxd5+ {[%emt 0:00:05]} Qe6 {[%emt 0:00:20]} 32. Qb7 {[%emt 0:00:14]} Re1+ {[%emt 0:00:12]} 33. Kg2 {[%emt 0:00:01]} Qe2+ {[%emt 0:00:29]} 34. Kg3 {[%emt 0:00:01]} Rg1+ {[%emt 0:00:08]} 35. Kh4 {[%emt 0:00:04]} Qxh2+ {[%emt 0:00:09]} 36. Kg5 {[%emt 0:00:02]} Qf4+ {[%emt 0:00:07]} 0-1

[Event "FIDE Womens World Cup 2021"]
[Site "Sochi"]
[Date "2021.07.17"]
[Round "2.4"]
[White "Buksa, Nataliya"]
[Black "Yip, Carissa"]
[Result "0-1"]
[ECO "B62"]
[WhiteElo "2413"]
[BlackElo "2430"]
[Annotator "NA"]
[PlyCount "70"]
[EventDate "2021.07.12"]
[EventType "k.o."]
[EventCountry "RUS"]
[SourceTitle "playchess.com"]
[Source "ChessBase"]
[SourceQuality "1"]
[TimeControl "1500+10"]

1. e4 {[%emt 0:00:01]} c5 {[%emt 0:00:01]} 2. Nf3 {[%emt 0:00:02]} d6 {[%emt 0:00:00]} 3. d4 {[%emt 0:00:01]} cxd4 {[%emt 0:00:01]} 4. Nxd4 {[%emt 0:00:00]} Nf6 {[%emt 0:00:01]} 5. Nc3 {[%emt 0:00:01]} Nc6 {[%emt 0:00:01]} 6. Bg5 {[%emt 0:00:01]} e6 {[%emt 0:00:10]} 7. Qd3 {[%emt 0:00:02]} a6 {[%emt 0:00:21]} 8. Nxc6 {[%emt 0:00:03]} bxc6 {[%emt 0:00:05]} 9. Qg3 {[%emt 0:00:01]} Qa5 {[%emt 0:01:35]} 10. O-O-O {[%emt 0:01:10]} Rb8 {[%emt 0:00:45]} 11. Bc4 {[%emt 0:04:42]} h6 {[%emt 0:01:33]} 12. Bd2 {[%emt 0:01:07]} Qb6 {[%emt 0:00:57]} 13. b3 {[%emt 0:02:13]} d5 {[%emt 0:03:04]} 14. Bd3 {[%emt 0:05:44]} d4 {[%emt 0:03:29]} 15. Na4 {[%emt 0:00:02]} Qa7 {[%emt 0:00:01]} 16. c3 {[%emt 0:00:42]} c5 {[%emt 0:00:37]} 17. cxd4 {[%emt 0:00:59]} cxd4 {[%emt 0:00:01]} 18. Kb1 {[%emt 0:00:01]} Bd7 {[%emt 0:00:27]} 19. Nb2 {[%emt 0:00:39]} a5 {[%emt 0:00:51]} 20. Bxa5 {[%emt 0:02:07]} Ra8 {[%emt 0:00:47]} 21. Nc4 {[%emt 0:00:01]} Bb5 {[%emt 0:00:25]} 22. Qe5 {[%emt 0:03:05]} Bxc4 {[%emt 0:04:00]} 23. Bxc4 {[%emt 0:00:15]} Bc5 {[%emt 0:01:48]} 24. Bb5+ {[%emt 0:04:39]} Kf8 {[%emt 0:00:48]} 25. a4 {[%emt 0:00:07]} Ng4 {[%emt 0:01:33]} 26. Qg3 {[%emt 0:00:02]} Qxa5 {[%emt 0:00:39]} 27. Qxg4 {[%emt 0:00:01]} g6 {[%emt 0:00:58]} 28. Rd3 {[%emt 0:00:22]} Kg7 {[%emt 0:00:18]} 29. Rc1 {[%emt 0:00:01]} Ba3 {[%emt 0:00:14]} 30. Rc6 {[%emt 0:01:04]} Rhc8 {[%emt 0:00:20]} 31. Ka2 {[%emt 0:00:16]} Be7 {[%emt 0:00:32]} 32. e5 {[%emt 0:00:03]} Qxb5 {[%emt 0:00:28]} 33. Rxc8 {[%emt 0:00:42]} Qxd3 {[%emt 0:00:01]} 34. Rxa8 {[%emt 0:00:02]} Qc2+ {[%emt 0:00:01]} 35. Ka1 {[%emt 0:00:03]} Bb4 {[%emt 0:00:12]} 0-1